[Event "Early-Titled-Tuesday-Blitz-May-07-2024"]
[Site "Chess.com"]
[Date "2024.05.07"]
[Round "3"]
[White "Rud_Makarian"]
[Black "Abund"]
[Result "1-0"]
[WhiteElo "3058"]
[BlackElo "2762"]
[TimeControl "180+1"]
[EndTime "8:34:36 PDT"]
[Termination "Rud_Makarian won by resignation"]

1. c4 {[%clk 0:03:00]} 1... e6 {[%clk 0:03:00.3]} 2. Nf3 {[%clk 0:03:00.4]} 2...
d5 {[%clk 0:03:00.9]} 3. g3 {[%clk 0:03:01]} 3... Nf6 {[%clk 0:03:00.9]} 4. Bg2
{[%clk 0:03:01.5]} 4... dxc4 {[%clk 0:03:01.5]} 5. Qa4+ {[%clk 0:03:00.6]} 5...
Bd7 {[%clk 0:03:01.4]} 6. Qxc4 {[%clk 0:03:01.1]} 6... c5 {[%clk 0:03:01.5]} 7.
Nc3 {[%clk 0:03:01]} 7... Nc6 {[%clk 0:02:58.6]} 8. O-O {[%clk 0:02:59.9]} 8...
Be7 {[%clk 0:02:47.5]} 9. d4 {[%clk 0:02:59.7]} 9... cxd4 {[%clk 0:02:42.4]} 10.
Nxd4 {[%clk 0:03:00.6]} 10... Rc8 {[%clk 0:02:40.4]} 11. Rd1 {[%clk 0:03:00.4]}
11... Qc7 {[%clk 0:02:08]} 12. Ndb5 {[%clk 0:02:37.6]} 12... Qb8 {[%clk
0:02:03.3]} 13. Bf4 {[%clk 0:02:10.2]} 13... e5 {[%clk 0:01:58.7]} 14. Bg5
{[%clk 0:01:48.7]} 14... Be6 {[%clk 0:01:44.9]} 15. Qh4 {[%clk 0:01:12.9]} 15...
a6 {[%clk 0:01:38.6]} 16. Na3 {[%clk 0:01:12.7]} 16... Nd4 {[%clk 0:01:27.2]}
17. Bxf6 {[%clk 0:01:05.1]} 17... Bxf6 {[%clk 0:01:26.6]} 18. Qe4 {[%clk
0:01:05.2]} 18... O-O {[%clk 0:01:15.8]} 19. e3 {[%clk 0:01:01.3]} 19... Nc6
{[%clk 0:00:55.2]} 20. Nd5 {[%clk 0:00:58.3]} 20... Bd8 {[%clk 0:00:52.7]} 21.
Rac1 {[%clk 0:00:52.5]} 21... f5 {[%clk 0:00:44.9]} 22. Qb1 {[%clk 0:00:50.4]}
22... e4 {[%clk 0:00:42.9]} 23. Nf4 {[%clk 0:00:48.9]} 23... Bf7 {[%clk
0:00:40.6]} 24. Nc4 {[%clk 0:00:48]} 24... Bxc4 {[%clk 0:00:29.4]} 25. Rxc4
{[%clk 0:00:48.9]} 25... Bf6 {[%clk 0:00:28.1]} 26. b4 {[%clk 0:00:41.7]} 26...
Ne5 {[%clk 0:00:24.6]} 27. Rxc8 {[%clk 0:00:39.4]} 27... Qxc8 {[%clk 0:00:25.2]}
28. Bf1 {[%clk 0:00:36.9]} 28... b5 {[%clk 0:00:20.7]} 29. Qb3+ {[%clk
0:00:36.9]} 29... Kh8 {[%clk 0:00:19.8]} 30. Kg2 {[%clk 0:00:35]} 30... Rd8
{[%clk 0:00:15.4]} 31. Rxd8+ {[%clk 0:00:34]} 31... Bxd8 {[%clk 0:00:15.8]} 32.
Qd5 {[%clk 0:00:32.8]} 32... Bf6 {[%clk 0:00:16.2]} 33. h4 {[%clk 0:00:30]}
33... g6 {[%clk 0:00:15.5]} 34. Be2 {[%clk 0:00:29.5]} 34... Kg7 {[%clk
0:00:15.2]} 35. Bd1 {[%clk 0:00:29.5]} 35... Qc6 {[%clk 0:00:14.6]} 36. Qd2
{[%clk 0:00:24.2]} 36... Nc4 {[%clk 0:00:11.9]} 37. Qe2 {[%clk 0:00:22.5]} 37...
Qd6 {[%clk 0:00:11.9]} 38. Bb3 {[%clk 0:00:20.8]} 38... Qxb4 {[%clk 0:00:11.4]}
39. Ne6+ {[%clk 0:00:13.7]} 39... Kh8 {[%clk 0:00:10.8]} 40. Nf4 {[%clk
0:00:11.8]} 40... Kg7 {[%clk 0:00:08.6]} 41. h5 {[%clk 0:00:10.2]} 41... Be5
{[%clk 0:00:08.5]} 42. hxg6 {[%clk 0:00:07.6]} 42... hxg6 {[%clk 0:00:08.7]} 43.
Nh3 {[%clk 0:00:06.2]} 43... Kf6 {[%clk 0:00:08.6]} 44. g4 {[%clk 0:00:06.3]}
44... Nd6 {[%clk 0:00:04]} 45. g5+ {[%clk 0:00:04.1]} 45... Ke7 {[%clk 0:00:04]}
46. Qd1 {[%clk 0:00:04.4]} 46... a5 {[%clk 0:00:04]} 47. Qd5 {[%clk 0:00:04.4]}
47... Qc3 {[%clk 0:00:03.3]} 48. Qe6+ {[%clk 0:00:04.6]} 48... Kd8 {[%clk
0:00:03.9]} 49. Qxg6 {[%clk 0:00:05]} 49... a4 {[%clk 0:00:03.8]} 50. Be6 {[%clk
0:00:05.5]} 50... Kc7 {[%clk 0:00:04.1]} 51. Bxf5 {[%clk 0:00:04.9]} 51... b4
{[%clk 0:00:02.6]} 52. Bxe4 {[%clk 0:00:05.1]} 52... b3 {[%clk 0:00:03.2]} 53.
axb3 {[%clk 0:00:05.4]} 53... a3 {[%clk 0:00:03.8]} 54. Bb1 {[%clk 0:00:05.9]}
54... Qb2 {[%clk 0:00:02.1]} 55. Qd3 {[%clk 0:00:04.6]} 55... Kb6 {[%clk
0:00:02]} 56. g6 {[%clk 0:00:04.8]} 56... Nb5 {[%clk 0:00:02]} 57. Nf4 {[%clk
0:00:02.8]} 57... Bxf4 {[%clk 0:00:02.1]} 58. exf4 {[%clk 0:00:02.7]} 58... Qf6
{[%clk 0:00:01.6]} 59. Qe3+ {[%clk 0:00:02.8]} 59... Ka5 {[%clk 0:00:01.8]} 60.
Qe5 {[%clk 0:00:02.7]} 60... Qc6+ {[%clk 0:00:01.3]} 61. Be4 {[%clk 0:00:02.6]}
61... Qc1 {[%clk 0:00:01.3]} 62. g7 {[%clk 0:00:02.2]} 62... a2 {[%clk 0:00:02]}
63. g8=Q {[%clk 0:00:02.7]} 63... a1=Q {[%clk 0:00:02.4]} 64. Qa8+ {[%clk
0:00:03.3]} 64... Kb4 {[%clk 0:00:02.8]} 65. Qaxa1 {[%clk 0:00:04.1]} 65... Qxa1
{[%clk 0:00:03.2]} 66. Qxa1 {[%clk 0:00:05]} 66... Nc3 {[%clk 0:00:03.8]} 67.
Qe1 {[%clk 0:00:05.5]} 67... Kxb3 {[%clk 0:00:03.8]} 68. Qxc3+ {[%clk
0:00:05.6]} 68... Kxc3 {[%clk 0:00:04.7]} 69. Kf3 {[%clk 0:00:06.5]} 69... Kd4
{[%clk 0:00:05.6]} 70. Bc2 {[%clk 0:00:05.7]} 70... Kc5 {[%clk 0:00:05.9]} 71.
Kg4 {[%clk 0:00:06.2]} 71... Kd6 {[%clk 0:00:06.8]} 72. Kg5 {[%clk 0:00:07.1]}
72... Ke7 {[%clk 0:00:07.7]} 73. Kg6 {[%clk 0:00:07.7]} 73... Kf8 {[%clk
0:00:08.6]} 74. f5 {[%clk 0:00:08.3]} 74... Kg8 {[%clk 0:00:09.2]} 75. f6 {[%clk
0:00:08.8]} 75... Kh8 {[%clk 0:00:10.1]} 76. Bb1 {[%clk 0:00:07.1]} 76... Kg8
{[%clk 0:00:10.5]} 77. Be4 {[%clk 0:00:05.5]} 77... Kh8 {[%clk 0:00:10.7]} 78.
Bg2 {[%clk 0:00:05.8]} 78... Kg8 {[%clk 0:00:11]} 79. Bh1 {[%clk 0:00:06.4]}
79... Kh8 {[%clk 0:00:11.1]} 80. Kf7 {[%clk 0:00:05.6]} 80... Kh7 {[%clk
0:00:11.4]} 81. f4 {[%clk 0:00:05.9]} 81... Kh6 {[%clk 0:00:06.8]} 82. Bf3
{[%clk 0:00:06.2]} 82... Kh7 {[%clk 0:00:06.7]} 83. Bg4 {[%clk 0:00:06.7]} 83...
Kh6 {[%clk 0:00:07.2]} 84. Ke7 {[%clk 0:00:07.2]} 84... Kg6 {[%clk 0:00:06.2]}
85. f7 {[%clk 0:00:07.4]} 85... Kh7 {[%clk 0:00:05.4]} 86. f8=Q {[%clk
0:00:07.6]} 86... Kg6 {[%clk 0:00:05.8]} 87. Qg8+ {[%clk 0:00:07.4]} 87... Kh6
{[%clk 0:00:05.4]} 88. Qg5+ {[%clk 0:00:07.2]} 88... Kh7 {[%clk 0:00:05.8]} 89.
Bf5+ {[%clk 0:00:07.7]} 89... Kh8 {[%clk 0:00:06]} 90. Qh6+ {[%clk 0:00:08.5]}
1-0

[Event "Early-Titled-Tuesday-Blitz-May-07-2024"]
[Site "Chess.com"]
[Date "2024.05.07"]
[Round "3"]
[White "ValiantCeleb"]
[Black "AndrewB92"]
[Result "0-1"]
[WhiteElo "2195"]
[BlackElo "2408"]
[TimeControl "180+1"]
[EndTime "8:35:00 PDT"]
[Termination "AndrewB92 won by checkmate"]

1. d4 {[%clk 0:03:00.9]} 1... d5 {[%clk 0:02:59.7]} 2. Bf4 {[%clk 0:03:01.1]}
2... Nf6 {[%clk 0:02:59.2]} 3. e3 {[%clk 0:03:00.9]} 3... Bf5 {[%clk 0:02:59]}
4. c4 {[%clk 0:03:00.9]} 4... e6 {[%clk 0:02:58.9]} 5. Nc3 {[%clk 0:03:01.4]}
5... c6 {[%clk 0:02:57.7]} 6. Qb3 {[%clk 0:03:01.8]} 6... Qb6 {[%clk 0:02:55.7]}
7. c5 {[%clk 0:03:01]} 7... Qxb3 {[%clk 0:02:54.9]} 8. axb3 {[%clk 0:03:01]}
8... Nbd7 {[%clk 0:02:47.9]} 9. b4 {[%clk 0:03:01]} 9... Nh5 {[%clk 0:02:46.6]}
10. b5 {[%clk 0:02:50.5]} 10... Nxf4 {[%clk 0:02:45.2]} 11. exf4 {[%clk
0:02:51.4]} 11... Be7 {[%clk 0:02:39.7]} 12. b4 {[%clk 0:02:44.1]} 12... O-O
{[%clk 0:02:38.5]} 13. Nf3 {[%clk 0:02:44.2]} 13... h6 {[%clk 0:02:19.4]} 14.
Be2 {[%clk 0:02:35.7]} 14... cxb5 {[%clk 0:02:05]} 15. Bxb5 {[%clk 0:02:26.8]}
15... Rfd8 {[%clk 0:01:43.3]} 16. Kd2 {[%clk 0:02:11.1]} 16... Be4 {[%clk
0:01:35]} 17. Nxe4 {[%clk 0:01:51.1]} 17... dxe4 {[%clk 0:01:34.4]} 18. Ne1
{[%clk 0:01:47.7]} 18... a5 {[%clk 0:01:14.3]} 19. Ke3 {[%clk 0:01:39.6]} 19...
Nf6 {[%clk 0:01:03.9]} 20. Bc4 {[%clk 0:01:30.5]} 20... axb4 {[%clk 0:01:01.9]}
21. Nc2 {[%clk 0:01:30.7]} 21... g5 {[%clk 0:00:34.8]} 22. fxg5 {[%clk
0:01:15.7]} 22... hxg5 {[%clk 0:00:35.7]} 23. Nxb4 {[%clk 0:01:07.5]} 23... Rxa1
{[%clk 0:00:35]} 24. Rxa1 {[%clk 0:01:06.7]} 24... e5 {[%clk 0:00:26.9]} 25.
dxe5 {[%clk 0:00:52.5]} 25... Bxc5+ {[%clk 0:00:26]} 26. Ke2 {[%clk 0:00:52.8]}
26... Ng4 {[%clk 0:00:17.1]} 27. Nd5 {[%clk 0:00:52]} 27... Nxe5 {[%clk
0:00:14.3]} 28. Bb3 {[%clk 0:00:51.7]} 28... Nd3 {[%clk 0:00:10.2]} 29. Nf6+
{[%clk 0:00:50.1]} 29... Kg7 {[%clk 0:00:10]} 30. Nxe4 {[%clk 0:00:50.6]} 30...
Nf4+ {[%clk 0:00:09.1]} 31. Kf1 {[%clk 0:00:44.8]} 31... Bd4 {[%clk 0:00:08.2]}
32. Rd1 {[%clk 0:00:43.1]} 32... f6 {[%clk 0:00:08]} 33. g3 {[%clk 0:00:40.2]}
33... Ng6 {[%clk 0:00:07.9]} 34. Nc3 {[%clk 0:00:26.3]} 34... Nf8 {[%clk
0:00:06.6]} 35. Nb5 {[%clk 0:00:23.8]} 35... Bb6 {[%clk 0:00:06.1]} 36. Rxd8
{[%clk 0:00:22.8]} 36... Bxd8 {[%clk 0:00:07]} 37. Nd6 {[%clk 0:00:23.4]} 37...
b6 {[%clk 0:00:05.9]} 38. h4 {[%clk 0:00:15.2]} 38... gxh4 {[%clk 0:00:05.4]}
39. gxh4 {[%clk 0:00:15.5]} 39... Ng6 {[%clk 0:00:05.6]} 40. h5 {[%clk
0:00:14.9]} 40... Nf4 {[%clk 0:00:05.1]} 41. h6+ {[%clk 0:00:15]} 41... Kh7
{[%clk 0:00:03.6]} 42. Bc2+ {[%clk 0:00:14.2]} 42... Ng6 {[%clk 0:00:02.9]} 43.
Kg2 {[%clk 0:00:05.3]} 43... Bc7 {[%clk 0:00:01.9]} 44. Ne8 {[%clk 0:00:04.2]}
44... Be5 {[%clk 0:00:02]} 45. Ng7 {[%clk 0:00:03.4]} 45... Kxh6 {[%clk
0:00:02.2]} 46. Nf5+ {[%clk 0:00:04.1]} 46... Kg5 {[%clk 0:00:02.6]} 47. Ne3
{[%clk 0:00:03]} 47... Nh4+ {[%clk 0:00:02.7]} 48. Kf1 {[%clk 0:00:03.1]} 48...
b5 {[%clk 0:00:03]} 49. Nd5 {[%clk 0:00:03.1]} 49... b4 {[%clk 0:00:03.2]} 50.
Nxb4 {[%clk 0:00:02.4]} 50... Nf3 {[%clk 0:00:03.7]} 51. Nd5 {[%clk 0:00:02.8]}
51... Nd2+ {[%clk 0:00:03.6]} 52. Ke2 {[%clk 0:00:03.4]} 52... Nc4 {[%clk
0:00:03.9]} 53. Ne3 {[%clk 0:00:03.3]} 53... Nd6 {[%clk 0:00:03.8]} 54. Bb1
{[%clk 0:00:02.6]} 54... Kf4 {[%clk 0:00:03.9]} 55. Ng2+ {[%clk 0:00:02.2]}
55... Kg4 {[%clk 0:00:03.9]} 56. Ne3+ {[%clk 0:00:02.1]} 56... Kh3 {[%clk
0:00:03.9]} 57. f3 {[%clk 0:00:01.6]} 57... Nb5 {[%clk 0:00:04.1]} 58. Bf5+
{[%clk 0:00:01.3]} 58... Kg3 {[%clk 0:00:03.8]} 59. Nf1+ {[%clk 0:00:00.6]}
59... Kf4 {[%clk 0:00:03.9]} 60. Ne3 {[%clk 0:00:01.4]} 60... Nd4+ {[%clk
0:00:04.8]} 61. Kf2 {[%clk 0:00:01.9]} 61... Nxf5 {[%clk 0:00:05.7]} 62. Nd5+
{[%clk 0:00:02.1]} 62... Kg5 {[%clk 0:00:05.7]} 63. f4+ {[%clk 0:00:02.1]} 63...
Bxf4 {[%clk 0:00:05.6]} 64. Kf3 {[%clk 0:00:02.6]} 64... Be5 {[%clk 0:00:05.5]}
65. Nb4 {[%clk 0:00:02.2]} 65... Nh4+ {[%clk 0:00:05.4]} 66. Kf2 {[%clk
0:00:02.4]} 66... f5 {[%clk 0:00:05.7]} 67. Nd3 {[%clk 0:00:02.2]} 67... Bd4+
{[%clk 0:00:05.6]} 68. Ke2 {[%clk 0:00:02.2]} 68... f4 {[%clk 0:00:05.4]} 69.
Nxf4 {[%clk 0:00:02.4]} 69... Kxf4 {[%clk 0:00:06.3]} 70. Kd3 {[%clk 0:00:02.7]}
70... Ke5 {[%clk 0:00:06.2]} 71. Ke2 {[%clk 0:00:02.4]} 71... Ke4 {[%clk
0:00:06.3]} 72. Kf1 {[%clk 0:00:02.9]} 72... Nf5 {[%clk 0:00:05.2]} 73. Kg2
{[%clk 0:00:03.4]} 73... Ne3+ {[%clk 0:00:05.3]} 74. Kh3 {[%clk 0:00:03.4]}
74... Kf4 {[%clk 0:00:04.3]} 75. Kh2 {[%clk 0:00:04]} 75... Ng4+ {[%clk
0:00:04.2]} 76. Kg2 {[%clk 0:00:04.3]} 76... Nf2 {[%clk 0:00:04.5]} 77. Kh2
{[%clk 0:00:04.5]} 77... Kf3 {[%clk 0:00:04.3]} 78. Kg1 {[%clk 0:00:04.4]} 78...
Be5 {[%clk 0:00:04.7]} 79. Kf1 {[%clk 0:00:03.3]} 79... Ne4 {[%clk 0:00:04.7]}
80. Kg1 {[%clk 0:00:03.4]} 80... Bd6 {[%clk 0:00:04.9]} 81. Kh1 {[%clk
0:00:03.7]} 81... Nf2+ {[%clk 0:00:05.2]} 82. Kg1 {[%clk 0:00:04]} 82... Bc7
{[%clk 0:00:05.7]} 83. Kf1 {[%clk 0:00:03.9]} 83... Bh2 {[%clk 0:00:06]} 84. Ke1
{[%clk 0:00:04.4]} 84... Ne4 {[%clk 0:00:06.4]} 85. Kd1 {[%clk 0:00:03.9]} 85...
Ke3 {[%clk 0:00:06.7]} 86. Kc2 {[%clk 0:00:04.5]} 86... Nd2 {[%clk 0:00:07]} 87.
Kc3 {[%clk 0:00:03.7]} 87... Bd6 {[%clk 0:00:07.3]} 88. Kb2 {[%clk 0:00:04.2]}
88... Bb4 {[%clk 0:00:07.6]} 89. Kc2 {[%clk 0:00:05]} 89... Ke2 {[%clk
0:00:06.4]} 90. Kb2 {[%clk 0:00:04.9]} 90... Kd3 {[%clk 0:00:06.2]} 91. Kc1
{[%clk 0:00:05.6]} 91... Nf3 {[%clk 0:00:06.2]} 92. Kd1 {[%clk 0:00:05.7]} 92...
Nd4 {[%clk 0:00:04.8]} 93. Kc1 {[%clk 0:00:06.2]} 93... Ke2 {[%clk 0:00:04.7]}
94. Kb2 {[%clk 0:00:06.1]} 94... Kd2 {[%clk 0:00:05]} 95. Kb1 {[%clk 0:00:06.5]}
95... Ba3 {[%clk 0:00:04.1]} 96. Ka2 {[%clk 0:00:06.3]} 96... Bc1 {[%clk
0:00:04.3]} 97. Kb1 {[%clk 0:00:05.6]} 97... Kd1 {[%clk 0:00:04.5]} 98. Ka2
{[%clk 0:00:05.7]} 98... Kc2 {[%clk 0:00:04.8]} 99. Ka1 {[%clk 0:00:06.2]} 99...
Ne2 {[%clk 0:00:05.1]} 100. Ka2 {[%clk 0:00:06.3]} 100... Nc3+ {[%clk
0:00:05.3]} 101. Ka1 {[%clk 0:00:07.1]} 101... Bb2# {[%clk 0:00:05.7]} 0-1

[Event "Early-Titled-Tuesday-Blitz-May-07-2024"]
[Site "Chess.com"]
[Date "2024.05.07"]
[Round "4"]
[White "pauliukevicius"]
[Black "Stanbad1"]
[Result "1-0"]
[WhiteElo "2432"]
[BlackElo "2594"]
[TimeControl "180+1"]
[EndTime "8:37:01 PDT"]
[Termination "pauliukevicius won by resignation"]

1. e4 {[%clk 0:03:00.9]} 1... e6 {[%clk 0:02:58.8]} 2. d4 {[%clk 0:02:59.9]}
2... d5 {[%clk 0:02:58.9]} 3. e5 {[%clk 0:03:00.6]} 3... c5 {[%clk 0:02:58.9]}
4. c3 {[%clk 0:03:01.4]} 4... Nc6 {[%clk 0:02:59.5]} 5. Nf3 {[%clk 0:03:01.9]}
5... Bd7 {[%clk 0:03:00.2]} 6. Bd3 {[%clk 0:03:02.3]} 6... cxd4 {[%clk
0:03:00.7]} 7. cxd4 {[%clk 0:03:02.6]} 7... Qb6 {[%clk 0:03:00.3]} 8. O-O {[%clk
0:03:03.3]} 8... Nxd4 {[%clk 0:03:00.5]} 9. Nxd4 {[%clk 0:03:03.7]} 9... Qxd4
{[%clk 0:03:00.4]} 10. Nc3 {[%clk 0:03:04.6]} 10... a6 {[%clk 0:02:59.5]} 11.
Re1 {[%clk 0:03:02.7]} 11... Ne7 {[%clk 0:02:58.8]} 12. Be3 {[%clk 0:02:58.9]}
12... Qb4 {[%clk 0:02:55]} 13. a3 {[%clk 0:02:54.7]} 13... Qa5 {[%clk
0:02:53.5]} 14. b4 {[%clk 0:02:54.2]} 14... Qd8 {[%clk 0:02:52.8]} 15. Na4
{[%clk 0:02:53.4]} 15... Nc8 {[%clk 0:02:48]} 16. Rc1 {[%clk 0:02:52]} 16... Be7
{[%clk 0:02:47]} 17. Nc5 {[%clk 0:02:51.2]} 17... Bc6 {[%clk 0:02:47]} 18. a4
{[%clk 0:02:51.3]} 18... O-O {[%clk 0:02:46.2]} 19. b5 {[%clk 0:02:51.5]} 19...
axb5 {[%clk 0:02:45.8]} 20. axb5 {[%clk 0:02:52.4]} 20... b6 {[%clk 0:02:44.7]}
21. Nxe6 {[%clk 0:02:49.2]} 21... fxe6 {[%clk 0:02:45.6]} 22. Rxc6 {[%clk
0:02:49.6]} 22... Ra2 {[%clk 0:02:44.1]} 23. Qh5 {[%clk 0:02:43.6]} 23... Bc5
{[%clk 0:02:41.2]} 24. Qxh7+ {[%clk 0:02:43]} 24... Kf7 {[%clk 0:02:38.9]} 25.
Bg6+ {[%clk 0:02:42.7]} 25... Ke7 {[%clk 0:02:37.9]} 26. Qxg7+ {[%clk
0:02:43.3]} 1-0

[Event "Early-Titled-Tuesday-Blitz-May-07-2024"]
[Site "Chess.com"]
[Date "2024.05.07"]
[Round "4"]
[White "andrew-blr"]
[Black "NajdorfPlayerc5"]
[Result "1-0"]
[WhiteElo "2604"]
[BlackElo "2424"]
[TimeControl "180+1"]
[EndTime "8:37:26 PDT"]
[Termination "andrew-blr won by resignation"]

1. d4 {[%clk 0:03:00.6]} 1... Nf6 {[%clk 0:02:59.8]} 2. c4 {[%clk 0:03:00.4]}
2... e6 {[%clk 0:02:59.8]} 3. Nc3 {[%clk 0:03:00]} 3... Bb4 {[%clk 0:03:00]} 4.
a3 {[%clk 0:02:59.7]} 4... Bxc3+ {[%clk 0:03:00.3]} 5. bxc3 {[%clk 0:03:00.4]}
5... b6 {[%clk 0:03:00.8]} 6. f3 {[%clk 0:03:00.5]} 6... c5 {[%clk 0:02:59.3]}
7. e4 {[%clk 0:03:00.4]} 7... d6 {[%clk 0:02:59.9]} 8. Ne2 {[%clk 0:02:59.5]}
8... Nc6 {[%clk 0:03:00]} 9. Ng3 {[%clk 0:02:59]} 9... e5 {[%clk 0:03:00.2]} 10.
Be3 {[%clk 0:02:55.5]} 10... O-O {[%clk 0:02:56.2]} 11. Bd3 {[%clk 0:02:48.3]}
11... cxd4 {[%clk 0:02:55.3]} 12. cxd4 {[%clk 0:02:48.2]} 12... Nxd4 {[%clk
0:02:55]} 13. Bxd4 {[%clk 0:02:48.5]} 13... exd4 {[%clk 0:02:55.9]} 14. Ne2
{[%clk 0:02:48.3]} 14... Nd7 {[%clk 0:02:55.1]} 15. Nxd4 {[%clk 0:02:47.8]}
15... Ne5 {[%clk 0:02:53]} 16. O-O {[%clk 0:02:41.8]} 16... Be6 {[%clk
0:02:50.3]} 17. Rc1 {[%clk 0:02:35.9]} 17... Rc8 {[%clk 0:02:48.5]} 18. Rf2
{[%clk 0:02:16.2]} 18... Nxc4 {[%clk 0:02:37.5]} 19. Nxe6 {[%clk 0:02:09.3]} 1-0

[Event "Early-Titled-Tuesday-Blitz-May-07-2024"]
[Site "Chess.com"]
[Date "2024.05.07"]
[Round "4"]
[White "SHIVACalypso"]
[Black "glebus008"]
[Result "0-1"]
[WhiteElo "2533"]
[BlackElo "2340"]
[TimeControl "180+1"]
[EndTime "8:38:13 PDT"]
[Termination "glebus008 won by resignation"]

1. c4 {[%clk 0:02:57.9]} 1... e6 {[%clk 0:02:59.7]} 2. g3 {[%clk 0:02:52.7]}
2... d5 {[%clk 0:03:00.6]} 3. Bg2 {[%clk 0:02:53.2]} 3... Nf6 {[%clk 0:03:00.9]}
4. Nf3 {[%clk 0:02:50.5]} 4... Be7 {[%clk 0:03:01.4]} 5. O-O {[%clk 0:02:50.2]}
5... O-O {[%clk 0:03:01.9]} 6. b3 {[%clk 0:02:48.5]} 6... c5 {[%clk 0:03:01.1]}
7. Bb2 {[%clk 0:02:48.4]} 7... d4 {[%clk 0:03:00.5]} 8. e3 {[%clk 0:02:49]} 8...
Nc6 {[%clk 0:02:59.8]} 9. exd4 {[%clk 0:02:48.8]} 9... cxd4 {[%clk 0:03:00.7]}
10. Re1 {[%clk 0:02:49.2]} 10... Re8 {[%clk 0:02:55.7]} 11. d3 {[%clk
0:02:48.8]} 11... Bb4 {[%clk 0:02:48.9]} 12. a3 {[%clk 0:02:45.5]} 12... Bxe1
{[%clk 0:02:47.5]} 13. Qxe1 {[%clk 0:02:44.8]} 13... e5 {[%clk 0:02:46.7]} 14.
Nbd2 {[%clk 0:02:44.4]} 14... Bf5 {[%clk 0:02:45.8]} 15. Qe2 {[%clk 0:02:43.7]}
15... a5 {[%clk 0:02:42.8]} 16. Re1 {[%clk 0:02:42]} 16... Qc7 {[%clk
0:02:40.6]} 17. Nh4 {[%clk 0:02:42]} 17... Bg4 {[%clk 0:02:38]} 18. f3 {[%clk
0:02:41.7]} 18... Bh5 {[%clk 0:02:37.4]} 19. Ne4 {[%clk 0:02:41.4]} 19... Nxe4
{[%clk 0:02:33.5]} 20. Qxe4 {[%clk 0:02:41.1]} 20... Bg6 {[%clk 0:02:28.2]} 21.
Nxg6 {[%clk 0:02:40.9]} 21... hxg6 {[%clk 0:02:29.1]} 22. f4 {[%clk 0:02:12.5]}
22... exf4 {[%clk 0:02:24.8]} 23. Qxe8+ {[%clk 0:02:12.6]} 23... Rxe8 {[%clk
0:02:25.1]} 24. Rxe8+ {[%clk 0:02:13.2]} 24... Kh7 {[%clk 0:02:25.3]} 25. Kf2
{[%clk 0:02:11.9]} 25... fxg3+ {[%clk 0:02:23.1]} 26. hxg3 {[%clk 0:02:12.8]}
26... Qb6 {[%clk 0:02:18]} 27. Bc1 {[%clk 0:02:08.9]} 27... Qxb3 {[%clk
0:02:15.2]} 0-1

[Event "Early-Titled-Tuesday-Blitz-May-07-2024"]
[Site "Chess.com"]
[Date "2024.05.07"]
[Round "4"]
[White "RantomOpening"]
[Black "kyawmyataung2005"]
[Result "1-0"]
[WhiteElo "2505"]
[BlackElo "2300"]
[TimeControl "180+1"]
[EndTime "8:38:33 PDT"]
[Termination "RantomOpening won by resignation"]

1. b3 {[%clk 0:03:00.4]} 1... Nf6 {[%clk 0:02:57.5]} 2. Bb2 {[%clk 0:03:00.5]}
2... g6 {[%clk 0:02:56.5]} 3. g4 {[%clk 0:02:59.6]} 3... h6 {[%clk 0:02:38.9]}
4. h4 {[%clk 0:02:55.5]} 4... Bg7 {[%clk 0:02:37.7]} 5. Bg2 {[%clk 0:02:54.4]}
5... Nc6 {[%clk 0:02:35.8]} 6. g5 {[%clk 0:02:52.5]} 6... hxg5 {[%clk
0:02:33.9]} 7. hxg5 {[%clk 0:02:53.4]} 7... Rxh1 {[%clk 0:02:33.5]} 8. Bxh1
{[%clk 0:02:54.3]} 8... Nh5 {[%clk 0:02:33.2]} 9. Bxg7 {[%clk 0:02:53.1]} 9...
Nxg7 {[%clk 0:02:32.9]} 10. Bxc6 {[%clk 0:02:53]} 10... dxc6 {[%clk 0:02:31.5]}
11. d4 {[%clk 0:02:50.9]} 11... Ne6 {[%clk 0:02:30.3]} 12. Nf3 {[%clk
0:02:50.3]} 12... c5 {[%clk 0:02:27]} 13. d5 {[%clk 0:02:46.2]} 13... Nf4 {[%clk
0:02:20.3]} 14. c4 {[%clk 0:02:46.1]} 14... e6 {[%clk 0:02:14.6]} 15. Qd2 {[%clk
0:02:43.3]} 15... Qd6 {[%clk 0:02:03]} 16. Nc3 {[%clk 0:02:41.6]} 16... Nh5
{[%clk 0:01:56.1]} 17. O-O-O {[%clk 0:02:34.6]} 17... a6 {[%clk 0:01:54.5]} 18.
Ne4 {[%clk 0:02:32.7]} 18... Qb6 {[%clk 0:01:54.2]} 19. d6 {[%clk 0:02:29.6]}
19... cxd6 {[%clk 0:01:44.9]} 20. Nxd6+ {[%clk 0:02:29.1]} 20... Kf8 {[%clk
0:01:45]} 21. Ne5 {[%clk 0:02:27.3]} 21... a5 {[%clk 0:01:26.9]} 22. Nxc8 {[%clk
0:02:27.1]} 1-0

[Event "Early-Titled-Tuesday-Blitz-May-07-2024"]
[Site "Chess.com"]
[Date "2024.05.07"]
[Round "4"]
[White "GrotBchess"]
[Black "Caroexpert"]
[Result "1-0"]
[WhiteElo "2488"]
[BlackElo "2664"]
[TimeControl "180+1"]
[EndTime "8:38:46 PDT"]
[Termination "GrotBchess won by resignation"]

1. e4 {[%clk 0:03:00.9]} 1... c6 {[%clk 0:03:00]} 2. d4 {[%clk 0:02:59.6]} 2...
d5 {[%clk 0:03:00.9]} 3. Nd2 {[%clk 0:02:59.1]} 3... dxe4 {[%clk 0:03:01.1]} 4.
Nxe4 {[%clk 0:03:00]} 4... Nf6 {[%clk 0:03:02]} 5. Nxf6+ {[%clk 0:02:59]} 5...
exf6 {[%clk 0:03:02.9]} 6. c3 {[%clk 0:02:59.3]} 6... Bd6 {[%clk 0:02:58.8]} 7.
Bd3 {[%clk 0:02:59.7]} 7... O-O {[%clk 0:02:59]} 8. Ne2 {[%clk 0:03:00.1]} 8...
Re8 {[%clk 0:02:58.7]} 9. O-O {[%clk 0:03:00.3]} 9... Nd7 {[%clk 0:02:58.8]} 10.
Bf4 {[%clk 0:02:58.7]} 10... Nf8 {[%clk 0:02:58.2]} 11. Qd2 {[%clk 0:02:53.4]}
11... Ng6 {[%clk 0:02:58.3]} 12. Bxd6 {[%clk 0:02:42.7]} 12... Qxd6 {[%clk
0:02:59.2]} 13. Ng3 {[%clk 0:02:42.5]} 13... Nf4 {[%clk 0:02:56]} 14. Bf5 {[%clk
0:02:40.8]} 14... g6 {[%clk 0:02:51.9]} 15. Bxc8 {[%clk 0:02:40]} 15... Raxc8
{[%clk 0:02:52.8]} 16. Rfe1 {[%clk 0:02:39.9]} 16... f5 {[%clk 0:02:53.1]} 17.
h3 {[%clk 0:02:32.7]} 17... c5 {[%clk 0:02:50]} 18. d5 {[%clk 0:02:17.3]} 18...
Qxd5 {[%clk 0:02:45.4]} 19. Qxf4 {[%clk 0:02:16.6]} 19... Rxe1+ {[%clk
0:02:44.5]} 20. Rxe1 {[%clk 0:02:17.4]} 20... Qxa2 {[%clk 0:02:44.8]} 21. Nxf5
{[%clk 0:01:58.2]} 21... gxf5 {[%clk 0:02:43.7]} 22. Qg5+ {[%clk 0:01:57.7]}
22... Kh8 {[%clk 0:02:41.3]} 23. Qf6+ {[%clk 0:01:57.5]} 23... Kg8 {[%clk
0:02:41.5]} 24. Re3 {[%clk 0:01:57]} 24... f4 {[%clk 0:02:40.3]} 25. Re5 {[%clk
0:01:55.1]} 25... Qb1+ {[%clk 0:02:29.1]} 26. Kh2 {[%clk 0:01:54.8]} 26... Qg6
{[%clk 0:02:17.4]} 27. Rg5 {[%clk 0:01:53.1]} 27... Rc6 {[%clk 0:02:16.7]} 28.
Rxg6+ {[%clk 0:01:51.6]} 28... hxg6 {[%clk 0:02:16.4]} 29. Qxf4 {[%clk
0:01:51.3]} 29... Kg7 {[%clk 0:02:10.3]} 30. Qe5+ {[%clk 0:01:48.7]} 30... Kh7
{[%clk 0:02:09.9]} 31. Qe7 {[%clk 0:01:47.5]} 1-0